fUST/lending_fUST_20251231
["ID","MTS","AMOUNT","RATE_DAILY","PERIOD"]
[400176711,1767171037723,-395.45312051,0.00010797,2]
[400176712,1767171037732,-500.0,0.00010797,2]
[400176713,1767171037742,-362.54373353,0.00010797,2]
[400176714,1767171037753,-137.45626647,0.00010797,2]
[400176715,1767171037762,-500.0,0.00010797,2]
[400176716,1767171037772,-500.0,0.00010797,2]
[400176717,1767171037781,-514.938421,0.00010797,2]
[400176718,1767171037791,-407.39116743,0.00010797,2]
[400176719,1767171037802,-92.60883257,0.00010797,2]
[400176720,1767171037811,-3615.10770517,0.00010798,2]
[400176721,1767171037822,-1895.5067058,0.00010798,2]
[400176722,1767171037833,-2500.0,0.00010798,2]
[400176723,1767171037845,-2856.88146084,0.00010798,2]
[400176724,1767171037995,-826.08819371,0.00010798,2]
[400176725,1767171038019,-1419.96876349,0.00010798,2]
[400176726,1767171038031,-25998.38735089,0.00010798,2]
[400176727,1767171038040,-346.63838602,0.00010799,2]
[400176728,1767171038050,-641.81684893,0.00010801,2]
[400176729,1767171038060,-457.60175072,0.00010896,2]
[400176730,1767171038070,-500.46708655,0.00010896,2]
[400176731,1767171038080,-500.46708655,0.00010896,2]
[400176732,1767171038089,-500.46708655,0.00010896,2]
[400176733,1767171038100,-500.46708655,0.00010896,2]
[400176734,1767171038110,-500.46708655,0.00010896,2]
[400176735,1767171038120,-500.46708655,0.00010896,2]
[400176736,1767171038130,-500.46708655,0.00010896,2]
[400176737,1767171038140,-500.46708655,0.00010896,2]
[400176738,1767171038149,-500.46708655,0.00010896,2]
[400176739,1767171038159,-500.46708655,0.00010896,2]
[400176740,1767171038168,-500.46708655,0.00010896,2]
[400176741,1767171038178,-500.46708655,0.00010896,2]
[400176742,1767171038187,-500.46708655,0.00010896,2]
[400176743,1767171038196,-500.46708655,0.00010896,2]
[400176744,1767171038206,-500.46708655,0.00010896,2]
[400176745,1767171038215,-500.46708655,0.00010896,2]
[400176746,1767171038224,-500.46708655,0.00010896,2]
[400176747,1767171038233,-1200.0,0.00010897,2]
[400176748,1767171038242,-300.0,0.00010898,2]
[400176749,1767171038251,-50000.0,0.00010899,2]
[400176750,1767171038260,-220.72809735,0.00010901,2]
[400176751,1767171038270,-207.35873939,0.00010901,2]
[400176752,1767171038279,-572.0392103,0.00010959,2]
[400176753,1767171038289,-500.0,0.00010959,2]
[400176754,1767171038298,-366.23777254,0.00010959,2]
[400176755,1767171038308,-500.0,0.00010959,2]
[400176756,1767171038317,-500.0,0.00010959,2]
[400176757,1767171038328,-300.0,0.00011118,2]
[400176758,1767171038337,-300.0,0.00011118,2]
[400176759,1767171038347,-300.0,0.00011118,2]
[400176760,1767171038360,-300.0,0.00011118,2]
[400176761,1767171038370,-300.0,0.00011118,2]
[400176762,1767171038379,-300.0,0.00011118,2]
[400176763,1767171038388,-300.0,0.00011118,2]
[400176764,1767171038399,-300.0,0.00011118,2]
[400176765,1767171038409,-300.0,0.00011118,2]
[400176766,1767171038421,-300.0,0.00011118,2]
[400176767,1767171038431,-300.0,0.00011118,2]
[400176768,1767171038441,-300.0,0.00011118,2]
[400176769,1767171038451,-300.0,0.00011118,2]
[400176770,1767171038460,-300.0,0.00011118,2]
[400176771,1767171038469,-300.0,0.00011118,2]
[400176772,1767171038479,-600.0,0.00011118,2]
[400176773,1767171038488,-163.84512541,0.00011207,2]
[400176774,1767171038498,-186.93979994,0.00011207,2]
[400176775,1767171038508,-500.0,0.00011207,2]
[400176776,1767171038518,-209.25266303,0.00011207,2]
[400176777,1767171038527,-500.0,0.00011207,2]
[400176778,1767171038536,-150.0,0.00011207,2]
[400176779,1767171038546,-150.0,0.00011207,2]
[400176780,1767171038556,-500.0,0.00011207,2]
[400176781,1767171038565,-206.49040661,0.00011207,2]
[400176782,1767171038575,-150.0,0.00011207,2]
[400176783,1767171038585,-500.0,0.00011207,2]
[400176784,1767171038595,-185.07294294,0.00011207,2]
[400176785,1767171038604,-150.0,0.00011207,2]
[400176786,1767171038614,-152.45803495,0.00011207,2]
[400176787,1767171038623,-150.0,0.00011207,2]
[400176788,1767171038632,-202.63669157,0.00011207,2]
[400176789,1767171038643,-500.0,0.00011207,2]
[400176790,1767171038652,-150.0,0.00011207,2]
[400176791,1767171038662,-500.0,0.00011344,2]
[400176792,1767171038672,-553.14948986,0.00011344,2]
[400176793,1767171038681,-150.0,0.00011344,2]
[400176794,1767171038691,-150.0,0.00011344,2]
[400176795,1767171038700,-500.0,0.00011344,2]
[400176796,1767171038709,-500.0,0.00011344,2]
[400176797,1767171038719,-208.19610497,0.00011344,2]
[400176798,1767171038729,-150.0,0.00011344,2]
[400176799,1767171038739,-500.0,0.00011344,2]
[400176800,1767171038749,-500.0,0.00011481,2]
[400176801,1767171038758,-150.0,0.00011481,2]
[400176802,1767171038768,-203.05185779,0.00011481,2]
[400176803,1767171038778,-206.87843062,0.00011481,2]
[400176804,1767171038787,-500.0,0.00011481,2]
[400176805,1767171038797,-150.0,0.00011481,2]
[400176806,1767171038807,-500.0,0.00011481,2]
[400176807,1767171038816,-13521.60000501,0.0001161,2]
[400176808,1767171038825,-500.0,0.00011618,2]
[400176809,1767171038835,-150.0,0.00011618,2]
[400176810,1767171038845,-500.0,0.00011618,2]
[400176811,1767171038855,-197.11954527,0.00011618,2]
[400176812,1767171038865,-500.0,0.00011618,2]
[400176813,1767171038875,-265.11029521,0.00011755,2]
[400176814,1767171038886,-150.0,0.00011755,2]
[400176815,1767171038896,-500.0,0.00011755,2]
[400176816,1767171038906,-500.0,0.00011755,2]
[400176817,1767171038917,-420.0,0.00011867,2]
[400176818,1767171038927,-227.0,0.00011867,2]
[400176819,1767171038937,-420.0,0.00011867,2]
[400176820,1767171038947,-420.0,0.00011867,2]
[400176821,1767171038957,-1680.0,0.00011876,2]
[400176822,1767171038967,-817.55,0.00011888,2]
[400176823,1767171038977,-250.0,0.00011892,2]
[400176824,1767171038987,-500.0,0.00011892,2]
[400176825,1767171038998,-500.0,0.00011892,2]
[400176826,1767171039009,-1680.0,0.00011976,2]
[400176827,1767171039019,-500.0,0.00012029,2]
[400176828,1767171039029,-500.0,0.00012029,2]
[400176829,1767171039039,-500.0,0.00012166,2]
[400176830,1767171039049,-500.0,0.00012166,2]
[400176831,1767171039059,-720.0,0.0001223,2]
[400176832,1767171039069,-500.0,0.00012303,2]
[400176833,1767171039078,-252.7531986,0.00012303,2]
[400176834,1767171039088,-2676.24,0.00012329,2]
[400176835,1767171039098,-2506.13,0.00012329,2]
[400176836,1767171039108,-2088.44,0.00012329,2]
[400176837,1767171039123,-1740.37,0.00012329,2]
[400176838,1767171039139,-1450.3,0.00012329,2]
[400176840,1767171039149,-1208.59,0.00012329,2]
[400176841,1767171039159,-1007.16,0.00012329,2]
[400176842,1767171039169,-839.3,0.00012329,2]
[400176843,1767171039179,-699.41,0.00012329,2]
[400176844,1767171039190,-582.84,0.00012329,2]
[400176846,1767171039199,-485.7,0.00012329,2]
[400176847,1767171039209,-404.75,0.00012329,2]
[400176848,1767171039218,-337.3,0.00012329,2]
[400176849,1767171039228,-281.08,0.00012329,2]
[400176850,1767171039237,-234.23,0.00012329,2]
[400176851,1767171039246,-195.19,0.00012329,2]
[400176852,1767171039256,-162.66,0.00012329,2]
[400176853,1767171039265,-813.34,0.00012329,2]
[400176854,1767171039275,-500.0,0.0001244,2]
[400176855,1767171039285,-1635.1,0.00012454,2]
[400176856,1767171039295,-641.81684892,0.0001249,2]
[400176857,1767171039304,-1174.16213624,0.00012533,2]
[400176858,1767171039314,-500.0,0.00012577,2]
[400176859,1767171039323,-500.0,0.00012714,2]
[400176860,1767171039332,-409.0332955,0.00012799,2]
[400176861,1767171039341,-491.17925611,0.00012851,2]
[400176862,1767171039350,-10483.8133284,0.00012957,2]
[400176864,1767171039362,-151.0,0.00013,2]
[400176865,1767171039371,-2452.65,0.0001302,2]
[400176868,1767171039381,-587.0,0.00013043,2]
[400176870,1767171039390,-587.0,0.00013043,2]
[400176871,1767171039400,-587.0,0.00013043,2]
[400176872,1767171039409,-207.88494265,0.00013049,2]
[400176874,1767171039419,-2351.0,0.00013063,2]
[400176875,1767171039427,-2351.0,0.00013161,2]
[400176877,1767171039436,-508.27838002,0.00013258,2]
[400176879,1767171039446,-381.16221649,0.00013273,2]
[400176880,1767171039455,-500.0,0.00013273,2]
[400176882,1767171039464,-500.0,0.00013273,2]
[400176883,1767171039473,-500.0,0.00013273,2]
[400176884,1767171039483,-500.0,0.00013273,2]
[400176885,1767171039492,-500.0,0.00013273,2]
[400176886,1767171039501,-500.0,0.00013273,2]
[400176887,1767171039511,-500.0,0.00013273,2]
[400176888,1767171039520,-160.63497667,0.00013273,2]
[400176889,1767171039529,-500.0,0.00013273,2]
[400176890,1767171039538,-500.0,0.00013273,2]
[400176891,1767171039547,-500.0,0.00013273,2]
[400176892,1767171039556,-177.12142034,0.00013273,2]
[400176893,1767171039565,-500.0,0.00013273,2]
[400176895,1767171039574,-500.0,0.00013273,2]
[400176896,1767171039583,-500.0,0.00013273,2]
[400176898,1767171039593,-500.0,0.00013273,2]
[400176900,1767171039603,-500.0,0.00013273,2]
[400176902,1767171039612,-500.0,0.00013273,2]
[400176903,1767171039621,-502.45533374,0.00013273,2]
[400176905,1767171039631,-500.0,0.00013273,2]
[400176907,1767171039640,-500.0,0.00013273,2]
[400176909,1767171039649,-500.0,0.00013273,2]
[400176911,1767171039658,-500.0,0.00013273,2]
[400176913,1767171039667,-500.0,0.00013273,2]
[400176915,1767171039677,-500.0,0.00013273,2]
[400176917,1767171039686,-500.0,0.00013273,2]
[400176918,1767171039695,-500.0,0.00013273,2]
[400176919,1767171039705,-500.0,0.00013273,2]
[400176920,1767171039714,-500.0,0.00013273,2]
[400176921,1767171039723,-500.0,0.00013273,2]
[400176922,1767171039733,-500.0,0.00013273,2]
[400176923,1767171039743,-500.0,0.00013273,2]
[400176924,1767171039753,-500.0,0.00013273,2]
[400176925,1767171039762,-499.96763801,0.00013273,2]
[400176926,1767171039771,-500.0,0.00013273,2]
[400176927,1767171039781,-459.90209075,0.00013273,2]
[400176928,1767171039790,-500.0,0.00013273,2]
[400176929,1767171039799,-500.0,0.00013273,2]
[400176930,1767171039808,-500.0,0.00013273,2]
[400176931,1767171039817,-585.46093203,0.00013273,2]
[400176932,1767171039826,-500.0,0.00013273,2]
[400176933,1767171039834,-500.0,0.00013273,2]
[400176934,1767171039844,-500.0,0.00013273,2]
[400176935,1767171039853,-500.0,0.00013273,2]
[400176936,1767171039863,-500.0,0.00013273,2]
[400176937,1767171039872,-500.0,0.00013273,2]
[400176938,1767171039881,-500.0,0.00013273,2]
[400176939,1767171039890,-501.55479895,0.00013273,2]
[400176940,1767171039899,-500.0,0.00013273,2]
[400176941,1767171039909,-500.0,0.00013273,2]
[400176942,1767171039918,-864.0,0.00013353,2]
[400176943,1767171039927,-174.49,0.00013353,2]
[400176944,1767171039936,-174.49,0.00013353,2]
[400176945,1767171039946,-174.49,0.00013353,2]
[400176946,1767171039956,-174.49,0.00013353,2]
[400176947,1767171039965,-174.49,0.00013353,2]
[400176948,1767171039974,-174.49,0.00013353,2]
[400176951,1767171039985,-174.49,0.00013353,2]
[400176954,1767171039995,-864.0,0.00013453,2]
[400176956,1767171040004,-2339.2549469,0.00013472,2]
[400176958,1767171040013,-151.0,0.000135,2]
[400176960,1767171040023,-10000.0,0.0001354,2]
[400176962,1767171040031,-3270.2,0.00013586,2]
[400176964,1767171040040,-300.0,0.00013673,2]
[400176966,1767171040049,-1279.85,0.00013698,2]
[400176968,1767171040058,-1279.85,0.00013698,2]
[400176970,1767171040067,-1279.85,0.00013698,2]
[400176972,1767171040076,-1279.85,0.00013698,2]
[400176974,1767171040085,-1279.85,0.00013698,2]
[400176975,1767171040095,-1279.85,0.00013698,2]
[400176977,1767171040104,-1279.85,0.00013698,2]
[400176979,1767171040113,-1279.85,0.00013698,2]
[400176981,1767171040122,-1279.85,0.00013698,2]
[400176983,1767171040131,-1279.85,0.00013698,2]
[400176985,1767171040139,-1279.85,0.00013698,2]
[400176987,1767171040148,-1279.85,0.00013698,2]
[400176988,1767171040158,-1279.85,0.00013698,2]
[400176990,1767171040167,-1279.85,0.00013698,2]
[400176992,1767171040176,-1279.85,0.00013698,2]
[400176994,1767171040185,-1279.85,0.00013698,2]
[400176996,1767171040195,-1279.85,0.00013698,2]
[400176998,1767171040204,-1279.85,0.00013698,2]
[400177000,1767171040213,-1279.85,0.00013698,2]
[400177002,1767171040222,-1279.85,0.00013698,2]
[400177004,1767171040231,-1279.85,0.00013698,2]
[400177006,1767171040240,-1279.85,0.00013698,2]
[400177008,1767171040249,-1279.85,0.00013698,2]
[400177010,1767171040259,-1279.85,0.00013698,2]
[400177012,1767171040267,-347.9611264,0.00013698,2]
[400177014,1767171040276,-1000.0,0.00013698,2]
[400177015,1767171040285,-1000.0,0.00013698,2]
[400177017,1767171040294,-1000.0,0.00013698,2]
[400177019,1767171040303,-1000.0,0.00013698,2]
[400177021,1767171040313,-1000.0,0.00013698,2]
[400177023,1767171040322,-1000.0,0.00013698,2]
[400177025,1767171040331,-1000.0,0.00013698,2]
[400177027,1767171040340,-1008.34593737,0.00013698,2]
[400177029,1767171040350,-606.03,0.00013698,2]
[400177031,1767171040362,-606.03,0.00013698,2]
[400177033,1767171040371,-606.03,0.00013698,2]
[400177035,1767171040380,-606.03,0.00013698,2]
[400177037,1767171040389,-606.03,0.00013698,2]
[400177039,1767171040399,-606.03,0.00013698,2]
[400177041,1767171040408,-606.03,0.00013698,2]
[400177043,1767171040417,-606.03,0.00013698,2]
[400177045,1767171040426,-606.03,0.00013698,2]
[400177047,1767171040435,-606.03,0.00013698,2]
[400177049,1767171040444,-606.03,0.00013698,2]
[400177050,1767171040453,-606.03,0.00013698,2]
[400177052,1767171040462,-606.03,0.00013698,2]
[400177054,1767171040473,-606.03,0.00013698,2]
[400177056,1767171040482,-606.03,0.00013698,2]
[400177058,1767171040491,-606.03,0.00013698,2]
[400177060,1767171040500,-606.03,0.00013698,2]
[400177062,1767171040509,-606.03,0.00013698,2]
[400177063,1767171040518,-606.03,0.00013698,2]
[400177065,1767171040528,-606.03,0.00013698,2]
[400177067,1767171040537,-606.03,0.00013698,2]
[400177069,1767171040546,-606.03,0.00013698,2]
[400177070,1767171040555,-606.03,0.00013698,2]
[400177072,1767171040564,-606.06539147,0.00013698,2]
[400177074,1767171040573,-500.0,0.00013698,2]
[400177076,1767171040582,-500.0,0.00013698,2]
[400177078,1767171040592,-500.0,0.00013698,2]
[400177080,1767171040601,-500.0,0.00013698,2]
[400177082,1767171040610,-500.0,0.00013698,2]
[400177084,1767171040621,-500.0,0.00013698,2]
[400177086,1767171040631,-500.0,0.00013698,2]
[400177088,1767171040639,-500.0,0.00013698,2]
[400177090,1767171040648,-500.0,0.00013698,2]
[400177091,1767171040658,-500.0,0.00013698,2]
[400177093,1767171040667,-500.0,0.00013698,2]
[400177095,1767171040676,-500.0,0.00013698,2]
[400177097,1767171040685,-500.0,0.00013698,2]
[400177099,1767171040694,-500.0,0.00013698,2]
[400177101,1767171040703,-500.0,0.00013698,2]
[400177103,1767171040712,-500.0,0.00013698,2]
[400177105,1767171040721,-500.0,0.00013698,2]
[400177107,1767171040730,-500.0,0.00013698,2]
[400177109,1767171040739,-500.0,0.00013698,2]
[400177111,1767171040751,-500.0,0.00013698,2]
[400177113,1767171040760,-499.86108977,0.00013698,2]
[400177115,1767171040769,-500.0,0.00013698,2]
[400177116,1767171040778,-500.0,0.00013698,2]
[400177118,1767171040787,-500.0,0.00013698,2]
[400177120,1767171040796,-500.0,0.00013698,2]
[400177122,1767171040805,-500.0,0.00013698,2]
[400177124,1767171040815,-500.0,0.00013698,2]
[400177126,1767171040824,-500.0,0.00013698,2]
[400177128,1767171040833,-500.0,0.00013698,2]
[400177130,1767171040842,-500.0,0.00013698,2]
[400177132,1767171040851,-500.0,0.00013698,2]
[400177134,1767171040860,-500.0,0.00013698,2]
[400177135,1767171040870,-500.0,0.00013698,2]
[400177137,1767171040879,-500.0,0.00013698,2]
[400177139,1767171040888,-262.16767073,0.00013698,2]
[400177141,1767171040897,-112464.7955958,0.00013699,2]
[400177143,1767171040906,-15490.5579877,0.00013699,2]
[400177145,1767171040917,-4594.809961,0.00013699,2]
[400177146,1767171040926,-986.710875,0.00013699,2]
[400177148,1767171040936,-500.0,0.00013699,2]
[400177150,1767171040945,-500.0,0.00013699,2]
[400177152,1767171040954,-500.0,0.00013699,2]
[400177154,1767171040964,-500.0,0.00013699,2]
[400177156,1767171040973,-500.0,0.00013699,2]
[400177158,1767171040982,-587.30545204,0.00013699,2]
[400177160,1767171040991,-160.15137988,0.00013699,2]
[400177162,1767171041000,-500.0,0.00013699,2]
[400177174,1767171041121,-500.0,0.00013699,2]
[400177176,1767171041130,-500.0,0.00013699,2]
[400177178,1767171041139,-165.03764715,0.00013699,2]
[400177180,1767171041149,-500.0,0.00013699,2]
[400177182,1767171041159,-500.0,0.00013699,2]
[400177184,1767171041168,-500.0,0.00013699,2]
[400177186,1767171041177,-500.0,0.00013699,2]
[400177188,1767171041186,-500.0,0.00013699,2]
[400177190,1767171041195,-500.0,0.00013699,2]
[400177192,1767171041205,-500.0,0.00013699,2]
[400177193,1767171041214,-150.35034149,0.00013699,2]
[400177195,1767171041223,-500.0,0.00013699,2]
[400177197,1767171041232,-500.0,0.00013699,2]
[400177199,1767171041241,-500.0,0.00013699,2]
[400177201,1767171041251,-500.0,0.00013699,2]
[400177202,1767171041259,-500.0,0.00013699,2]
[400177204,1767171041270,-500.0,0.00013699,2]
[400177206,1767171041279,-500.0,0.00013699,2]
[400177208,1767171041288,-303.93264249,0.00013699,2]
[400177210,1767171041297,-500.0,0.00013699,2]
[400177212,1767171041307,-237.8458189,0.00013699,2]
[400177214,1767171041316,-500.0,0.00013699,2]
[400177216,1767171041326,-500.0,0.00013699,2]
[400177218,1767171041336,-500.0,0.00013699,2]
[400177220,1767171041345,-500.0,0.00013699,2]
[400177222,1767171041356,-160.18745103,0.00013699,2]
[400177224,1767171041365,-500.0,0.00013699,2]
[400177225,1767171041374,-158.38886572,0.00013699,2]
[400177227,1767171041384,-188.42009972,0.00013699,2]
[400177229,1767171041394,-298.53483888,0.00013699,2]
[400177231,1767171041403,-500.0,0.00013699,2]
[400177233,1767171041413,-158.39206841,0.00013699,2]
[400177235,1767171041422,-565.555714,0.00013699,2]
[400177237,1767171041433,-500.0,0.00013699,2]
[400177239,1767171041442,-500.0,0.00013699,2]
[400177241,1767171041451,-500.0,0.00013699,2]
[400177243,1767171041460,-500.0,0.00013699,2]
[400177245,1767171041469,-500.0,0.00013699,2]
[400177247,1767171041479,-500.0,0.00013699,2]
[400177249,1767171041488,-500.0,0.00013699,2]
[400177251,1767171041497,-500.0,0.00013699,2]
[400177253,1767171041507,-500.0,0.00013699,2]
[400177254,1767171041516,-159.68059141,0.00013699,2]
[400177256,1767171041525,-500.0,0.00013699,2]
[400177258,1767171041534,-500.0,0.00013699,2]
[400177260,1767171041543,-500.0,0.00013699,2]
[400177262,1767171041553,-500.0,0.00013699,2]
[400177264,1767171041562,-500.0,0.00013699,2]
[400177266,1767171041571,-307.59957655,0.00013699,2]
[400177268,1767171041580,-500.0,0.00013699,2]
[400177269,1767171041589,-500.0,0.00013699,2]
[400177271,1767171041598,-500.0,0.00013699,2]
[400177273,1767171041607,-500.0,0.00013699,2]
[400177275,1767171041616,-500.0,0.00013699,2]
[400177277,1767171041625,-500.0,0.00013699,2]
[400177279,1767171041635,-500.0,0.00013699,2]
[400177281,1767171041644,-500.0,0.00013699,2]
[400177282,1767171041653,-500.0,0.00013699,2]
[400177284,1767171041663,-500.0,0.00013699,2]
[400177286,1767171041672,-163.65866633,0.00013699,2]
[400177288,1767171041682,-500.0,0.00013699,2]
[400177290,1767171041691,-500.0,0.00013699,2]
[400177292,1767171041700,-500.0,0.00013699,2]
[400177294,1767171041709,-242.87306652,0.00013699,2]
[400177296,1767171041718,-500.0,0.00013699,2]
[400177298,1767171041727,-346.46150426,0.00013699,2]
[400177299,1767171041736,-500.0,0.00013699,2]
[400177301,1767171041745,-500.0,0.00013699,2]
[400177303,1767171041754,-500.0,0.00013699,2]
[400177305,1767171041763,-500.0,0.00013699,2]
[400177307,1767171041772,-158.18512633,0.00013699,2]
[400177309,1767171041781,-260.28159851,0.00013699,2]
[400177311,1767171041790,-500.0,0.00013699,2]
[400177313,1767171041799,-416.75445415,0.00013699,2]
[400177315,1767171041808,-500.0,0.00013699,2]
[400177317,1767171041817,-500.0,0.00013699,2]
[400177318,1767171041826,-158.38534385,0.00013699,2]
[400177320,1767171041835,-158.38532202,0.00013699,2]
[400177322,1767171041844,-158.38534191,0.00013699,2]
[400177324,1767171041853,-160.3309554,0.00013699,2]
[400177326,1767171041863,-158.38533297,0.00013699,2]
[400177328,1767171041872,-260.2481779,0.00013699,2]
[400177330,1767171041881,-157.18386067,0.00013699,2]
[400177332,1767171041890,-500.0,0.00013699,2]
[400177334,1767171041900,-500.0,0.00013699,2]
[400177336,1767171041909,-500.57498562,0.00013699,2]
[400177337,1767171041918,-500.0,0.00013699,2]
[400177339,1767171041928,-178.08460977,0.00013699,2]
[400177341,1767171041937,-500.0,0.00013699,2]
[400177343,1767171041946,-309.28633635,0.00013699,2]
[400177345,1767171041955,-500.0,0.00013699,2]
[400177347,1767171041965,-500.0,0.00013699,2]
[400177349,1767171041975,-500.0,0.00013699,2]
[400177351,1767171041985,-500.0,0.00013699,2]
[400177353,1767171041994,-158.10807846,0.00013699,2]
[400177355,1767171042004,-500.0,0.00013699,2]
[400177357,1767171042013,-500.0,0.00013699,2]
[400177359,1767171042022,-158.3853059,0.00013699,2]
[400177361,1767171042032,-500.0,0.00013699,2]
[400177363,1767171042041,-500.0,0.00013699,2]
[400177364,1767171042050,-500.0,0.00013699,2]
[400177366,1767171042060,-500.0,0.00013699,2]
[400177368,1767171042070,-500.0,0.00013699,2]
[400177370,1767171042083,-500.0,0.00013699,2]
[400177372,1767171042092,-500.0,0.00013699,2]
[400177374,1767171042101,-500.0,0.00013699,2]
[400177376,1767171042110,-500.0,0.00013699,2]
[400177378,1767171042120,-500.0,0.00013699,2]
[400177380,1767171042129,-465.53448151,0.00013699,2]
[400177382,1767171042139,-500.0,0.00013699,2]
[400177384,1767171042148,-500.0,0.00013699,2]
[400177386,1767171042157,-500.0,0.00013699,2]
[400177388,1767171042170,-500.0,0.00013699,2]
[400177390,1767171042179,-500.0,0.00013699,2]
[400177392,1767171042189,-500.0,0.00013699,2]
[400177394,1767171042199,-1000.0,0.00013821,2]
[400177396,1767171042209,-1000.0,0.00013821,2]
[400177398,1767171042219,-1000.0,0.00013821,2]
[400177400,1767171042229,-1000.0,0.00013821,2]
[400177403,1767171042238,-1061.98334321,0.00013821,2]
[400177405,1767171042247,-1000.0,0.00013821,2]
[400177408,1767171042256,-1000.0,0.00013821,2]
[400177411,1767171042265,-1000.0,0.00013821,2]
[400177414,1767171042275,-1000.0,0.00013821,2]
[400177417,1767171042285,-1000.0,0.00013821,2]
[400177419,1767171042294,-1000.0,0.00013821,2]
[400177421,1767171042304,-1000.0,0.00013821,2]
[400177423,1767171042313,-1000.0,0.00013821,2]
[400177425,1767171042322,-1000.0,0.00013821,2]
[400177427,1767171042332,-1000.0,0.00013821,2]
[400177429,1767171042341,-1000.0,0.00013821,2]
[400177431,1767171042352,-1000.0,0.00013821,2]
[400177432,1767171042363,-1000.0,0.00013821,2]
[400177434,1767171042372,-1000.0,0.00013821,2]
[400177436,1767171042381,-315.88685405,0.00013821,2]
[400177438,1767171042391,-1000.0,0.00013821,2]
[400177440,1767171042400,-1000.0,0.00013821,2]
[400177442,1767171042409,-1000.0,0.00013821,2]
[400177444,1767171042418,-1000.0,0.00013821,2]
[400177446,1767171042427,-1000.0,0.00013821,2]
[400177448,1767171042436,-1000.0,0.00013821,2]
[400177450,1767171042445,-1000.0,0.00013821,2]
[400177452,1767171042454,-686.16786472,0.00013821,2]
[400177454,1767171042463,-1000.0,0.00013821,2]
[400177455,1767171042473,-1000.0,0.00013821,2]
[400177457,1767171042483,-690.31177109,0.00013821,2]
[400177459,1767171042491,-849.3977641,0.00013821,2]
[400177461,1767171042500,-413.99757981,0.00013821,2]
[400177463,1767171042510,-544.63270575,0.00013821,2]
[400177465,1767171042519,-1000.0,0.00013821,2]
[400177467,1767171042528,-1000.0,0.00013821,2]
[400177469,1767171042537,-1000.0,0.00013821,2]
[400177471,1767171042546,-1000.0,0.00013821,2]
[400177473,1767171042555,-1000.0,0.00013821,2]
[400177475,1767171042564,-1000.0,0.00013821,2]
[400177476,1767171042573,-1000.0,0.00013821,2]
[400177478,1767171042583,-1000.0,0.00013821,2]
[400177480,1767171042593,-602.47879957,0.00013821,2]
[400177482,1767171042602,-151.0,0.00014,2]
[400177484,1767171042611,-250.0,0.00014128,2]
[400177486,1767171042620,-4087.75,0.00014152,2]
[400177488,1767171042630,-641.81684892,0.00014179,2]
[400177490,1767171042640,-600.0,0.00014221,2]
[400177492,1767171042649,-1000.0,0.00014247,2]
[400177494,1767171042658,-1000.0,0.00014247,2]
[400177496,1767171042667,-433.15519118,0.00014247,2]
[400177498,1767171042676,-1000.0,0.00014247,2]
[400177500,1767171042685,-609.17214565,0.00014247,2]
[400177502,1767171042694,-1000.0,0.00014247,2]
[400177504,1767171042704,-297.63479171,0.00014247,2]
[400177506,1767171042713,-1002.43895782,0.00014247,2]
[400177507,1767171042723,-1000.0,0.00014247,2]